bitfinex/quotes_ETHUSD_20250114
["timestamp","ask_amount","ask_price","bid_price","bid_amount"]
[1736864726677,0.04635777,3216.4,3216.1,0.7562]
[1736864726891,0.04635777,3216.4,3216.3,3.65916]
[1736864727041,0.0708,3217.5,3216.4,0.55]
[1736864727379,0.239,3218.2,3216.6,3.86507]
[1736864727380,0.0708,3217.8,3216.6,3.86507]
[1736864727542,0.0708,3217.8,3216.8,2.93775052]
[1736864727742,0.04585718,3217.7,3216.8,2.93775052]
[1736864727977,0.0708,3217.8,3216.9,0.03107814]
[1736864728145,0.0708,3217.8,3217.0,0.29688287]
[1736864728841,0.04602044,3217.7,3217.0,0.29688287]
[1736864729741,0.0708,3217.8,3216.6,0.7562]
[1736864730085,0.04602044,3217.7,3216.7,0.03107814]
[1736864730329,3.0708,3217.6,3215.7,3.10968]
[1736864730615,0.0708,3217.3,3215.7,0.7629]
[1736864730812,0.0708,3216.9,3215.5,3.37453933]
[1736864731181,0.0458115,3216.8,3215.5,3.37453933]
[1736864731382,0.0708,3216.7,3215.5,3.37453933]
[1736864731768,0.04627721,3216.6,3215.6,0.03109242]
[1736864732269,0.04627721,3216.6,3215.5,3.37453933]
[1736864733010,0.04627721,3216.6,3215.5,3.78828326]
[1736864733500,0.0708,3216.7,3215.5,3.78828326]
[1736864733903,0.04627721,3216.6,3215.6,0.03109239]
[1736864734275,0.0708,3216.7,3215.6,0.03109239]
[1736864735120,0.0708,3216.7,3215.5,3.81937254]
[1736864735268,0.0708,3216.7,3215.7,0.03108928]
[1736864735469,0.04636219,3216.6,3215.6,0.76975601]
[1736864735669,0.0708,3216.7,3215.6,0.76975601]
[1736864737005,0.0708,3218.0,3216.2,3.56729495]
[1736864737208,0.0708,3218.0,3216.5,3.56729495]
[1736864737379,0.04657961,3217.9,3216.6,0.46409964]
[1736864737885,0.0708,3218.0,3216.6,0.46409964]
[1736864738209,0.04629982,3217.9,3216.6,0.46409964]
[1736864738414,0.04629982,3217.9,3216.6,0.4330195]
[1736864738576,0.0708,3218.0,3216.6,0.4330195]
[1736864738777,0.0708,3218.0,3216.7,0.43421898]
[1736864738973,0.04625319,3217.9,3216.7,0.43421898]
[1736864739209,0.0708,3217.8,3216.7,0.40313943]
[1736864739374,0.11691325,3217.8,3216.3,3.65120124]
[1736864739775,0.0708,3217.8,3216.3,3.65120124]
[1736864740270,0.0708,3217.8,3216.5,3.56729495]
[1736864740476,0.0708,3217.8,3216.2,3.56729495]
[1736864740671,0.0708,3217.6,3215.9,3.56729495]
[1736864740911,0.0708,3217.6,3216.4,0.23137805]
[1736864741210,0.0708,3217.4,3216.4,0.23137805]
[1736864741575,0.04604302,3217.3,3216.4,0.23137805]
[1736864741820,0.04604302,3217.3,3216.4,0.26246473]
[1736864742016,0.04604302,3217.3,3216.4,0.03108668]
[1736864742310,0.04604302,3217.3,3216.2,0.62105262]
[1736864742616,0.0708,3217.2,3216.2,0.62105262]
[1736864743186,0.0708,3217.2,3216.2,0.43649389]
[1736864743819,0.0708,3217.2,3216.2,0.43649386]
[1736864744192,0.0708,3217.2,3216.2,0.40540721]
[1736864744399,0.0708,3217.2,3216.0,0.4330195]
[1736864744923,0.0708,3217.2,3216.1,0.03108693]
[1736864745220,0.0708,3217.2,3216.0,0.4330195]
[1736864745522,0.0708,3217.2,3215.5,3.37453933]
[1736864745713,0.04571641,3217.1,3215.4,3.0]
[1736864745883,0.0708,3217.0,3215.4,3.0]
[1736864746218,0.0457396,3216.9,3215.5,0.03109205]
[1736864746418,0.0708,3216.8,3215.5,0.03109205]
[1736864746618,0.0708,3216.8,3215.6,0.30310921]
[1736864746925,0.0708,3216.8,3215.7,0.03109205]
[1736864747797,0.0708,3216.8,3215.6,0.03109204]
[1736864748890,0.0708,3216.8,3215.7,0.8169]
[1736864749087,0.0708,3216.8,3215.8,0.03109203]
[1736864749291,0.04549396,3216.7,3215.8,0.47262073]
[1736864749689,0.0708,3216.8,3215.8,0.47262073]
[1736864749886,0.0708,3216.8,3215.5,0.26325112]
[1736864750092,0.11629396,3216.7,3215.5,0.03109202]
[1736864750304,0.11629396,3216.7,3215.3,8.0016192]
[1736864750489,0.0708,3216.7,3215.3,8.0016192]
[1736864751035,0.0708,3216.7,3215.0,4.38419495]
[1736864751192,3.0,3216.7,3215.4,0.23223631]
[1736864751392,0.0708,3216.5,3215.4,0.23223631]
[1736864751927,0.04549067,3216.4,3215.5,0.03109386]
[1736864752528,0.0708,3216.5,3215.5,0.03109386]
[1736864752901,0.0708,3216.5,3215.6,0.03109387]
[1736864753116,0.0708,3216.5,3215.3,3.59838508]
[1736864753408,0.0708,3216.5,3215.4,0.92631345]
[1736864753595,0.0708,3216.5,3215.6,3.56729495]
[1736864753800,0.0708,3216.5,3215.7,0.03109142]
[1736864754296,0.0708,3216.5,3215.4,0.69407714]
[1736864756515,0.0708,3216.5,3215.5,0.03109146]
[1736864758043,0.0708,3216.5,3215.6,4.38419495]
[1736864758199,0.0708,3216.5,3215.7,0.78360274]
[1736864759052,0.04478778,3216.4,3215.7,0.78360274]
[1736864759409,0.04478778,3216.4,3215.7,0.75251464]
[1736864759732,0.04478778,3216.4,3215.7,0.98446743]
[1736864760239,0.04478778,3216.4,3215.9,3.56729495]
[1736864760453,0.04478778,3216.4,3216.0,0.3909245]
[1736864760653,3.5935,3216.8,3216.0,0.3909245]
[1736864760959,3.5935,3216.8,3216.0,0.3598384]
[1736864761150,0.04294407,3216.7,3216.1,0.03108607]
[1736864761353,0.04294407,3216.7,3216.0,0.3598384]
[1736864761661,0.04294407,3216.7,3216.1,0.42690835]
[1736864761953,0.04294407,3216.7,3216.1,0.65886114]
[1736864762758,0.04294407,3216.7,3216.1,0.62777473]
[1736864763052,0.04294407,3216.7,3216.2,0.0310861]
[1736864763634,3.5935,3216.8,3216.2,3.59838105]
[1736864763829,3.5227,3216.8,3216.3,0.3994203]
[1736864764037,3.5227,3216.8,3216.4,0.03108565]
[1736864764350,0.04316406,3216.7,3216.4,0.03108565]
[1736864764651,3.5227,3216.8,3216.5,3.56729495]
[1736864764854,3.5227,3216.8,3216.6,3.03108381]
[1736864765064,3.5227,3216.8,3216.7,0.65983788]
[1736864765436,3.5227,3216.8,3216.7,1.46253788]
[1736864765642,0.0708,3218.1,3216.8,6.65867]
[1736864765870,0.0708,3219.3,3217.8,3.56729495]
[1736864766158,0.0708,3219.3,3218.1,3.56729495]
[1736864766479,0.0708,3219.3,3218.2,0.03106777]
[1736864766961,0.0708,3219.3,3218.4,3.56729495]
[1736864767272,0.0708,3219.3,3218.5,0.031065]
[1736864767474,0.16596387,3220.6,3219.0,3.56729495]
[1736864767675,0.0708,3220.7,3219.3,3.56729495]
[1736864767892,0.0708,3220.7,3219.1,0.03105988]
[1736864768241,0.0708,3220.4,3219.1,0.03105988]
[1736864768667,0.0708,3220.4,3218.9,3.56729495]
[1736864768668,0.04432086,3220.3,3218.9,3.56729495]
[1736864768945,0.04432086,3220.3,3219.0,0.03105907]
[1736864770695,0.04432086,3220.3,3219.2,3.56729495]
[1736864770981,0.0708,3220.4,3219.0,0.45389239]
[1736864771447,0.04520918,3220.3,3219.0,0.45389239]
[1736864774882,0.0708,3220.2,3219.0,0.45389239]
[1736864777374,0.0708,3220.2,3219.5,3.56729495]
[1736864777546,0.0708,3220.2,3219.6,3.38778272]
[1736864777749,0.0708,3220.9,3219.6,3.38778272]
[1736864777948,0.04673322,3220.8,3219.6,3.38778272]
[1736864778504,0.04673322,3220.8,3219.8,3.56729495]
[1736864778678,0.0708,3220.9,3219.9,0.03105071]
[1736864778846,0.04720727,3220.7,3219.9,0.03102344]
[1736864779051,0.04732714,3220.8,3220.1,3.56729495]
[1736864779247,0.0708,3220.9,3220.2,0.03102079]
[1736864781351,1.01480283,3221.7,3220.4,3.56729495]
[1736864781574,0.0708,3221.6,3221.0,3.56729495]
[1736864781773,0.1686541,3221.7,3221.3,3.56729495]
[1736864781992,0.1686541,3221.7,3221.1,0.03103862]
[1736864782161,0.1686541,3221.7,3220.5,3.0]
[1736864782489,0.1686541,3221.7,3220.7,3.56729495]
[1736864782687,0.1686541,3221.7,3220.8,0.0310426]
[1736864782993,0.1686541,3221.7,3220.4,4.36979495]
[1736864782994,0.0708,3221.6,3220.4,4.36979495]
[1736864783289,0.0708,3221.6,3220.6,0.0310426]
[1736864783852,0.0708,3221.6,3220.4,3.56729495]
[1736864784050,0.0708,3221.6,3220.7,3.56729495]
[1736864784298,0.0708,3221.6,3220.5,0.35983388]
[1736864784506,0.0708,3221.6,3220.2,0.61439708]
[1736864784709,0.04855358,3221.5,3220.2,0.31439708]
[1736864784870,0.04855358,3221.5,3220.4,3.56729495]
[1736864785055,0.0708,3221.6,3220.5,0.03104259]
[1736864785402,0.0708,3221.6,3220.5,3.56729495]
[1736864785688,0.04848183,3221.5,3220.6,0.387774]
[1736864785890,0.0708,3221.6,3220.6,0.387774]
[1736864786255,0.0708,3221.6,3220.6,3.387774]
[1736864787197,0.0708,3221.6,3220.8,3.56729495]
[1736864787494,0.0708,3221.6,3220.9,0.03103972]
[1736864787699,0.1686541,3221.7,3221.5,3.56729495]
[1736864788013,0.1686541,3221.7,3221.0,1.16233347]
[1736864788014,0.1686541,3221.7,3221.1,3.59832784]
[1736864788214,0.1686541,3221.7,3221.1,3.56729495]
[1736864788393,0.1686541,3221.7,3221.2,3.63896393]
[1736864791286,0.0708,3222.8,3221.7,3.56729495]
[1736864791465,0.04252253,3222.7,3221.8,0.03103154]
[1736864791683,0.0708,3222.8,3221.8,0.03103154]
[1736864791886,0.0708,3222.8,3221.8,0.39086419]
[1736864792595,0.0708,3222.8,3221.8,0.35983265]
[1736864792763,0.0708,3222.8,3221.8,0.39086108]
[1736864795294,0.0708,3222.8,3221.8,0.35983265]
[1736864795788,0.0708,3222.8,3221.9,0.03103081]
[1736864796174,0.0708,3222.8,3221.8,0.35983265]
[1736864796361,0.0708,3222.8,3221.9,0.03103038]
[1736864796874,0.0708,3222.8,3221.4,4.19842344]
[1736864796875,0.0708,3222.8,3221.4,0.66216068]
[1736864797200,0.04310174,3222.7,3221.5,0.50149556]
[1736864797372,0.55,3223.2,3221.5,0.50149556]
[1736864797562,0.04339419,3223.1,3221.5,0.50149556]
[1736864798103,0.04339419,3223.1,3221.6,3.59832771]
[1736864798675,0.04339419,3223.1,3221.6,3.56729495]
[1736864799310,0.04339419,3223.1,3221.6,3.59832773]
[1736864800010,0.04339419,3223.1,3221.6,3.56729495]
[1736864800218,0.067,3223.0,3221.7,0.0310328]
[1736864800711,0.067,3222.8,3221.6,3.56729495]
[1736864801227,0.067,3222.8,3221.7,0.03103275]
[1736864801395,0.067,3222.8,3221.8,0.35983277]
[1736864801629,0.067,3222.8,3221.8,0.39086558]
[1736864801927,0.067,3222.8,3221.8,0.35983277]
[1736864802567,0.04324224,3222.7,3221.8,0.35983277]
[1736864802769,0.067,3222.6,3221.8,0.35983277]
[1736864803078,0.067,3222.6,3221.6,3.56729495]
[1736864803293,0.067,3222.6,3221.7,0.03103227]
[1736864803480,0.067,3222.6,3221.9,2.93402782]
[1736864803689,0.067,3222.6,3222.0,0.03103166]
[1736864804003,0.067,3222.6,3222.1,0.03103187]
[1736864804303,0.067,3222.6,3221.9,2.93402782]
[1736864804479,0.067,3222.6,3222.0,0.03103187]
[1736864804682,0.067,3222.6,3221.6,2.93402782]
[1736864804879,0.067,3222.6,3221.5,0.50149556]
[1736864805097,0.04311295,3222.5,3221.6,0.03103562]
[1736864805417,0.04311295,3222.5,3221.6,2.96506344]
[1736864805601,0.04311295,3222.5,3221.7,0.3466559]
[1736864805919,0.067,3222.4,3221.7,0.3466559]
[1736864806418,0.067,3222.4,3221.8,0.2880478]
[1736864806721,0.04287508,3222.3,3221.8,0.2880478]
[1736864806917,0.067,3222.2,3221.8,0.2880478]
[1736864807488,0.067,3222.0,3221.8,0.2880478]
[1736864807804,0.04259566,3221.9,3221.7,0.23027374]
[1736864807988,0.05959566,3222.0,3221.7,0.23027374]
[1736864808382,0.05959566,3222.0,3221.2,0.23027374]
[1736864808605,0.05959566,3222.0,3221.2,0.8467039]
[1736864809633,0.05959566,3222.0,3221.3,0.23027374]
[1736864809987,0.05959566,3222.0,3221.3,3.19533995]
[1736864810193,0.05959566,3222.0,3221.6,2.93402782]
[1736864810912,0.05959566,3222.0,3221.7,0.03103664]
[1736864811120,0.0596,3222.9,3221.8,0.29650645]
[1736864811318,0.0596,3222.9,3221.9,0.03103433]
[1736864811535,0.0596,3222.9,3221.8,0.29650645]
[1736864811536,0.0596,3222.7,3221.8,0.29650645]
[1736864811687,0.0596,3222.7,3222.0,0.28889219]
[1736864811893,0.04136815,3222.6,3222.0,0.28889219]
[1736864812094,0.0596,3222.5,3222.0,0.28889219]
[1736864812492,0.0596,3222.5,3221.3,2.93402782]
[1736864812801,0.04259101,3222.4,3221.3,2.93402782]
[1736864813016,0.04259101,3222.4,3221.4,0.29340278]
[1736864813594,0.04259101,3222.4,3221.5,0.28916558]
[1736864813794,0.04259101,3222.4,3221.5,0.52049804]
[1736864813996,0.0596,3222.3,3221.5,0.52049804]
[1736864814750,0.0596,3222.3,3221.6,2.93402782]
[1736864815048,0.0596,3222.3,3221.7,0.37959069]
[1736864815195,0.0596,3222.3,3221.7,0.66875627]
[1736864815746,0.0596,3222.3,3221.7,0.3201999]
[1736864816451,0.0596,3222.3,3221.8,0.23133246]
[1736864816815,0.04237675,3222.2,3221.8,0.52049804]
[1736864817018,0.0596,3222.3,3221.8,0.52049804]
[1736864817395,0.04237675,3222.2,3221.9,0.23133246]
[1736864817599,0.0596,3222.3,3221.9,0.23133246]
[1736864817831,0.04240001,3222.2,3221.9,0.23133246]
[1736864818300,0.0596,3222.3,3221.9,0.23133246]
[1736864818638,0.0596,3222.3,3222.0,0.28957325]
[1736864818951,0.0423535,3222.2,3222.0,0.52090571]
[1736864819234,0.0596,3222.3,3222.0,0.52090571]
[1736864819643,0.0423535,3222.2,3222.0,0.52090571]
[1736864820230,0.0596,3222.3,3221.3,0.03103574]
[1736864820531,0.0596,3222.3,3221.4,0.29650636]
[1736864820832,0.0596,3222.3,3221.5,0.03103574]
[1736864821033,0.0596,3222.3,3221.2,2.93402782]
[1736864821338,0.0596,3222.3,3221.3,0.03103738]
[1736864821519,0.0422789,3222.2,3221.5,0.23169572]
[1736864821722,0.0422789,3222.2,3221.6,0.8184]
[1736864822039,0.0596,3222.8,3221.8,2.93402782]
[1736864822214,0.0596,3222.8,3221.9,0.03103273]
[1736864822411,0.0596,3222.8,3222.1,2.93402782]
[1736864822625,0.0596,3222.8,3222.2,0.03102801]
[1736864822940,0.0596,3222.8,3222.4,2.93402782]
[1736864823131,0.0596,3222.8,3222.5,0.29340278]
[1736864823711,0.0596,3222.8,3222.2,1.10787943]
[1736864823912,0.0596,3222.8,3222.3,0.0310267]
[1736864824233,0.0596,3222.8,3222.6,0.23169572]
[1736864824620,0.0415725,3222.7,3222.6,0.23169572]
[1736864824827,0.0596,3222.8,3222.6,0.23169572]
[1736864825222,0.04121774,3222.7,3222.6,0.23169572]
[1736864825421,0.0596,3222.8,3222.3,0.28947943]
[1736864825629,0.0596,3222.8,3221.8,0.03103139]
[1736864825815,0.0596,3222.8,3221.9,0.3985987]
[1736864826015,0.0596,3222.8,3222.0,0.03103016]
[1736864826944,0.0596,3222.8,3222.1,0.28932545]
[1736864827344,0.0596,3222.8,3222.1,0.52087335]
[1736864827532,0.0596,3222.8,3222.1,0.55190349]
[1736864828154,0.0596,3222.8,3222.2,0.28932545]
[1736864828451,0.0596,3222.8,3222.2,0.52087335]
[1736864828837,0.0596,3222.8,3222.2,0.55190349]
[1736864829420,0.0596,3222.8,3222.3,0.52087335]
[1736864830831,0.0596,3222.8,3222.3,0.28932545]
[1736864831567,0.0596,3222.8,3221.9,0.28932545]
[1736864831752,0.0596,3222.8,3222.0,0.03103005]
[1736864832352,0.0596,3222.8,3221.9,0.52066046]
[1736864832555,0.0596,3222.6,3221.9,0.52066046]
[1736864832753,0.0596,3222.6,3221.9,0.23133501]
[1736864833048,0.04166554,3222.5,3221.9,0.23133501]
[1736864833351,0.04166554,3222.5,3221.9,0.03103481]
[1736864833658,0.0596,3222.6,3221.9,0.03103481]
[1736864834857,0.0596,3222.6,3221.5,0.03103382]
[1736864835418,0.0596,3222.6,3221.6,0.28932545]
[1736864835623,0.0596,3222.6,3221.7,0.03103545]
[1736864836258,0.0596,3222.6,3221.8,0.28932545]
[1736864836736,0.04181918,3222.5,3221.8,0.28932545]
[1736864837053,0.0596,3222.6,3221.8,0.28932545]
[1736864837437,0.0596,3222.4,3221.8,0.28932545]
[1736864837621,0.0596,3222.4,3221.4,0.23133848]
[1736864837622,0.04167958,3222.3,3221.4,0.23133848]
[1736864837821,0.0596,3222.2,3221.4,0.23133848]
[1736864838156,0.04153997,3222.1,3221.4,0.23133848]
[1736864838360,0.04153997,3222.1,3221.6,0.8285]
[1736864838657,0.0596,3222.2,3221.4,0.23133848]
[1736864838960,0.0596,3222.2,3221.7,0.28934393]
[1736864839930,0.0596,3222.2,3221.2,0.03103752]
[1736864840132,0.0596,3222.2,3221.3,0.38979584]
[1736864840330,0.0596,3222.2,3221.3,0.35875808]
[1736864841450,0.0596,3222.2,3221.4,0.23133848]
[1736864842163,0.04129417,3222.1,3221.4,0.23133848]
[1736864842550,0.04129417,3222.1,3221.0,0.8285]
[1736864842551,0.04129417,3222.1,3221.1,0.23133848]
[1736864842753,0.0596,3222.0,3221.1,0.23133848]
[1736864843168,0.0411282,3221.9,3221.1,0.23133848]
[1736864843542,0.0596,3222.0,3221.1,0.23133848]
[1736864843743,0.0596,3222.0,3221.2,0.03103889]
[1736864844055,0.0411282,3221.9,3221.2,0.26237737]
[1736864844251,0.0411282,3221.9,3221.2,0.23133848]
[1736864844459,0.0596,3221.8,3221.2,0.23133848]
[1736864845582,0.0596,3221.8,3220.9,0.23133848]
[1736864846079,0.04074272,3221.7,3220.9,0.23133848]
[1736864847200,0.04074272,3221.7,3220.6,0.26238066]
[1736864847397,0.04074272,3221.7,3220.7,0.38198483]
[1736864847602,0.0596,3221.8,3220.8,2.96772046]
[1736864847766,0.0596,3221.8,3220.9,0.8285]
[1736864847954,0.0596,3221.8,3221.1,2.93667829]
[1736864848150,0.0596,3222.5,3221.1,2.93667829]
[1736864848345,0.0596,3222.5,3221.2,0.32470397]
[1736864848551,0.0410514,3222.4,3221.2,0.32470397]
[1736864849855,0.0596,3222.3,3221.2,0.32470397]
[1736864850056,0.0596,3222.3,3221.3,0.23133848]
[1736864850369,2.93667829,3221.9,3221.3,0.23133848]
[1736864850590,0.0596,3221.5,3221.3,0.23133848]
[1736864850952,0.10010688,3221.4,3221.3,0.23133848]
[1736864851150,0.65010688,3221.4,3221.3,0.23133848]
[1736864851465,1.3192054,3221.4,3221.3,0.23133848]
[1736864851855,0.0596,3221.3,3219.8,3.19906745]
[1736864852270,0.0401125,3221.2,3220.1,2.93667829]
[1736864852468,0.0596,3221.3,3220.1,2.93667829]
[1736864852666,0.0596,3221.3,3220.4,2.93667829]
[1736864852667,0.04004265,3221.1,3220.4,2.93667829]
[1736864852864,0.0596,3221.3,3220.5,0.39999205]
[1736864854006,0.0596,3221.3,3220.5,0.36894783]
[1736864854359,0.03998513,3221.2,3220.0,0.7528]
[1736864854525,0.0596,3221.1,3220.1,0.03104748]
[1736864854727,0.0596,3221.1,3220.0,0.7528]
[1736864854945,0.0596,3221.1,3220.1,2.96772577]
[1736864855829,0.0596,3221.1,3220.2,0.23122135]
[1736864856035,0.0596,3221.1,3220.3,0.35094217]
[1736864856417,0.0596,3221.1,3220.3,0.31989471]
[1736864857447,0.0596,3221.1,3220.3,0.35094219]
[1736864859765,0.0596,3221.1,3220.0,0.7528]
[1736864859973,0.0596,3221.1,3219.7,0.7528]
[1736864860177,0.03904333,3221.0,3219.7,0.78384941]
[1736864860475,0.03904333,3221.0,3220.9,2.93667829]
[1736864860766,0.0596,3221.8,3220.9,3.68947829]
[1736864860933,0.0596,3221.8,3221.0,0.39998613]
[1736864861756,0.0596,3221.8,3221.0,0.36894783]
[1736864862120,0.0596,3221.8,3221.0,0.59999677]
[1736864862942,0.0596,3221.8,3221.0,0.26208956]
[1736864863521,0.0596,3221.8,3221.0,0.03104062]
[1736864864646,0.0596,3221.8,3221.0,0.26208956]
[1736864865025,0.0596,3222.4,3221.1,0.7528]
[1736864865355,0.0596,3222.4,3221.2,0.03103713]
[1736864865356,0.03832903,3222.3,3221.2,0.03103713]
[1736864865763,0.03832903,3222.3,3221.2,2.96771542]
[1736864865961,0.03832903,3222.3,3221.3,0.37205154]
[1736864866350,0.0596,3222.2,3221.3,0.37205154]
[1736864866553,0.0596,3222.2,3221.1,0.7528]
[1736864866953,0.0596,3222.2,3221.1,0.98384894]
[1736864867768,0.0596,3222.2,3221.2,0.03103713]
[1736864868463,0.0596,3222.2,3221.2,2.96771542]
[1736864869644,0.0596,3222.2,3221.3,0.23104894]
[1736864869979,0.0596,3222.2,3221.4,0.35091241]
[1736864871778,0.0596,3222.2,3221.4,0.31987644]
[1736864872073,0.03818942,3222.1,3221.4,0.31987644]
[1736864873382,0.03818942,3222.1,3221.5,0.03103601]
[1736864873692,0.03818942,3222.1,3221.4,0.31987644]
[1736864874086,0.03818942,3222.1,3221.5,0.03103599]
[1736864874382,0.0596,3222.2,3221.4,0.31987644]
[1736864874752,0.03861743,3222.1,3221.1,0.7528]
[1736864874946,0.0596,3222.0,3220.8,0.8178]
[1736864875176,0.0596,3221.9,3220.8,0.8178]
[1736864875493,0.03747721,3221.8,3220.8,0.84884208]
[1736864875788,0.03747721,3221.8,3220.9,2.93667829]
[1736864875987,0.03747721,3221.8,3221.0,0.40959286]
[1736864876898,0.0596,3221.9,3221.0,0.40959286]
[1736864877199,0.03751051,3221.7,3221.0,0.40959286]
[1736864877548,0.0596,3221.9,3221.0,0.40959286]
[1736864877794,0.0596,3221.9,3221.0,0.37855204]
[1736864877949,0.0596,3221.9,3220.8,0.8178]
[1736864878149,0.03832448,3221.8,3220.5,0.8178]
[1736864878345,0.0596,3221.7,3221.0,0.23114328]
[1736864879991,0.0596,3221.7,3220.7,0.26218539]
[1736864880283,0.0596,3221.7,3220.8,0.03104211]
[1736864880490,0.0596,3221.7,3220.7,0.23114328]
[1736864880698,0.0596,3221.6,3220.8,0.03104443]
[1736864880884,0.09800467,3221.6,3220.8,0.03104443]
[1736864881087,0.0596,3221.6,3220.8,0.03104443]
[1736864881701,0.0596,3221.6,3220.9,0.03104211]
[1736864882685,0.0596,3221.6,3220.7,0.0310421]
[1736864883003,0.0596,3221.6,3220.8,0.29677204]
[1736864883202,0.0596,3221.6,3220.9,0.03104209]
[1736864885478,0.0596,3221.6,3220.8,0.23114328]
[1736864885802,0.0596,3221.6,3220.9,0.03104087]
[1736864886501,3.0,3222.0,3220.7,0.23114328]
[1736864886702,0.0596,3221.8,3220.7,0.23114328]
[1736864886876,0.03833484,3221.5,3220.8,0.23114328]
[1736864887081,0.59366783,3221.9,3220.8,0.23114328]
[1736864887082,0.0596,3221.8,3220.8,0.23114328]
[1736864887277,0.038265,3221.4,3220.9,0.0310452]
[1736864887477,0.0596,3221.8,3220.9,0.0310452]
[1736864887680,0.03814679,3221.3,3220.9,0.0310452]
[1736864887995,0.0596,3221.8,3220.9,0.0310452]
[1736864888391,0.03840604,3221.7,3220.9,0.0310452]
[1736864888989,0.0596,3221.6,3220.4,1.02564328]
[1736864889193,0.0596,3221.6,3221.0,0.23114328]
[1736864889367,0.0596,3221.4,3221.0,0.23114328]
[1736864889806,0.03814679,3221.3,3221.0,0.23114328]
[1736864890309,0.03814679,3221.3,3220.2,0.26218947]
[1736864890507,0.03814679,3221.3,3220.3,2.93667829]
[1736864890703,0.03814679,3221.3,3220.4,0.3509316]
[1736864890907,0.0596,3221.4,3220.7,0.7945]
[1736864891111,0.0596,3221.4,3220.8,0.03104234]
[1736864891603,0.0596,3221.4,3220.8,0.26218562]
[1736864891970,0.0596,3221.4,3220.8,0.23114328]
[1736864892306,0.03814679,3221.3,3220.8,0.23114328]
[1736864892805,0.03814679,3221.3,3220.5,0.23114328]
[1736864892995,0.0596,3221.4,3220.6,0.03104591]
[1736864893393,0.03802932,3221.3,3220.6,0.03104591]
[1736864893608,0.03802932,3221.3,3220.8,2.93667829]
[1736864893808,0.03802932,3221.3,3221.1,2.93667829]
[1736864893980,0.0596,3221.7,3221.2,0.03103872]
[1736864895002,0.0596,3221.7,3221.0,0.03103897]
[1736864896898,0.0596,3221.7,3220.9,0.29366783]
[1736864897104,0.0596,3221.7,3220.8,0.03103898]
[1736864897293,0.03572516,3221.6,3220.8,0.03103898]
[1736864897495,0.03572516,3221.6,3221.0,0.2315899]
[1736864897826,0.0596,3221.7,3221.0,0.2315899]
[1736864898322,0.03600673,3221.6,3221.0,0.2315899]
[1736864898619,0.0596,3221.7,3221.1,0.83324245]
[1736864900189,0.0596,3221.7,3221.1,0.03104245]
[1736864900533,0.03589152,3221.6,3221.0,0.2315899]
[1736864901211,0.0596,3221.7,3221.0,0.2315899]
[1736864901425,0.0596,3221.7,3220.8,0.2315899]
[1736864901633,0.03590964,3221.6,3220.9,0.03104369]
[1736864901979,0.0596,3221.7,3220.9,0.03104369]
[1736864902174,0.03583978,3221.5,3220.9,0.03104369]
[1736864902376,0.0596,3221.7,3220.9,0.03104369]
[1736864902678,0.0596,3221.7,3220.8,0.2315899]
[1736864902679,0.03576991,3221.4,3220.8,0.2315899]
[1736864902888,0.0596,3221.7,3220.9,0.03104082]
[1736864903100,0.0596,3221.7,3221.0,0.2315899]
[1736864903409,0.03590964,3221.6,3221.0,0.2315899]
[1736864903616,0.0596,3221.7,3221.0,0.2315899]
[1736864903789,0.0358836,3221.5,3221.0,0.2315899]
[1736864903992,0.0596,3221.4,3221.0,0.2315899]
[1736864904187,0.09559416,3221.4,3221.0,0.2315899]
[1736864904574,0.09559416,3221.4,3220.7,0.2315899]
[1736864904778,0.0596,3221.4,3220.7,0.2315899]
[1736864905600,0.0596,3221.4,3220.7,0.2626339]
[1736864905902,0.0596,3221.4,3220.2,0.7527]
[1736864906298,0.03666828,3221.3,3220.3,0.03104564]
[1736864906502,0.03666828,3221.3,3220.5,2.93667829]
[1736864906677,0.03666828,3221.3,3220.8,2.93667829]
[1736864906891,0.0596,3221.7,3220.9,0.03104218]
[1736864907832,0.0596,3221.7,3221.1,2.93667829]
[1736864907995,0.61843103,3222.4,3221.3,0.7527]
[1736864908331,0.61843103,3222.4,3221.4,0.03103529]
[1736864908644,0.03551085,3222.3,3221.4,0.03103529]
[1736864908995,0.0596,3222.5,3221.4,0.03103529]
[1736864909191,0.03572269,3222.2,3221.3,0.7527]
[1736864909452,0.0596,3222.5,3221.5,0.2319701]
[1736864909618,0.03574861,3222.1,3221.6,0.03103533]
[1736864909931,0.0596,3222.5,3221.5,0.26300544]
[1736864910113,0.03546423,3222.0,3221.5,0.26300544]
[1736864910308,0.0596,3222.5,3221.5,0.26300544]
[1736864910510,0.0353944,3221.9,3221.5,0.03103534]
[1736864910814,0.0596,3222.5,3221.6,0.03103538]
[1736864911010,0.03532457,3221.8,3221.4,0.03103535]
[1736864911220,0.67703597,3222.5,3221.4,2.96771364]
[1736864911421,0.03543842,3221.7,3221.4,2.96771364]
[1736864911616,0.67703597,3222.5,3221.4,2.96771364]
[1736864911933,0.67703597,3222.5,3221.3,0.7527]
[1736864912137,0.03614876,3222.4,3221.5,0.28960977]
[1736864913237,0.0596,3222.3,3221.6,0.23179211]
[1736864913434,0.09578868,3222.3,3221.6,0.23179211]
[1736864914205,0.09578868,3222.3,3221.3,0.7527]
[1736864914206,0.09578868,3222.3,3221.4,0.26282786]
[1736864914421,0.0596,3222.3,3221.4,0.26282786]
[1736864914621,0.03611887,3222.2,3221.4,3.19950615]
[1736864914825,0.0596,3222.3,3221.5,0.39522062]
[1736864915056,0.03598012,3222.1,3221.5,0.4262559]
[1736864915266,0.03602686,3222.2,3221.4,0.23179211]
[1736864915441,0.0596,3222.3,3221.4,0.23179211]
[1736864915762,0.03595704,3222.1,3221.2,0.23179211]
[1736864916061,0.03611887,3222.2,3221.3,0.03103693]
[1736864916264,0.03597924,3222.0,3221.3,0.03103693]
[1736864916428,0.03598316,3222.1,3221.3,0.35098766]
[1736864916631,0.0596,3222.3,3221.3,0.58277977]
[1736864916864,0.03587952,3222.0,3221.3,0.58277977]
[1736864917071,0.0596,3221.9,3221.3,0.23179211]
[1736864917431,0.0357371,3221.8,3221.3,0.23179211]
[1736864917928,0.0596,3221.7,3221.1,0.23179211]
[1736864918373,0.03559865,3221.6,3221.1,0.23179211]
[1736864918693,0.0596,3221.5,3221.1,0.23179211]
[1736864919171,0.0596,3221.5,3220.5,0.23179211]
[1736864919401,0.0356219,3221.4,3220.6,0.03104418]
[1736864920868,0.0356219,3221.4,3220.6,0.40308643]
[1736864922269,0.0356219,3221.4,3220.7,0.23177466]
[1736864922766,0.0356219,3221.4,3220.8,0.03104399]
[1736864923084,0.0596,3221.3,3220.7,0.23177466]